bitfinex-derivatives/quotes_ETHF0:USTF0_20250704
["timestamp","ask_amount","ask_price","bid_price","bid_amount"]
[1751659312125,12.08202,2484.1,2483.5,9.02816]
[1751659312318,1.07422919,2484.0,2483.9,0.80507]
[1751659313118,0.80498,2484.2,2484.1,0.805]
[1751659313620,0.80498,2484.2,2483.8,1.4172]
[1751659313621,40.8,2484.3,2484.0,0.80501]
[1751659313920,0.80497,2484.2,2484.1,1.4172]
[1751659316319,77.233,2484.4,2483.5,0.6723]
[1751659316320,0.80506,2484.0,2483.8,0.80507]
[1751659316520,0.80506,2484.0,2483.9,1.3124]
[1751659317724,0.805,2484.2,2484.0,0.80502]
[1751659317924,0.805,2484.2,2484.1,1.4154]
[1751659318124,37.23,2484.2,2484.1,2.2204]
[1751659320323,37.23,2484.2,2484.1,1.4154]
[1751659321921,37.224,2484.2,2484.1,1.4154]
[1751659322729,37.222,2484.2,2484.1,2.2204]
[1751659323231,0.80496,2484.3,2484.2,0.80497]
[1751659323532,37.22096,2484.3,2484.2,0.80497]
[1751659324024,37.22096,2484.3,2484.2,1.49957]
[1751659325033,37.22096,2484.3,2484.2,0.6946]
[1751659325332,37.22096,2484.3,2484.2,1.49957]
[1751659325627,0.80496,2484.3,2484.2,3.81707]
[1751659326724,37.0791,2484.5,2484.2,3.0121]
[1751659326929,0.80494,2484.3,2484.2,2.50585]
[1751659327928,0.80494,2484.3,2484.2,1.7009]
[1751659328134,0.80494,2484.3,2484.2,1.0063]
[1751659332434,0.80494,2484.3,2484.2,4.2266]
[1751659333535,0.80494,2484.3,2484.2,5.03157]
[1751659335441,0.80494,2484.3,2484.2,4.2266]
[1751659336241,0.80494,2484.3,2484.2,5.03157]
[1751659338844,77.8681,2484.5,2484.2,5.03157]
[1751659338845,0.80491,2484.5,2484.4,0.80489]
[1751659339237,1.88065612,2484.5,2484.4,0.80489]
[1751659339446,0.80491,2484.5,2484.4,1.48159]
[1751659339646,0.80486,2484.6,2484.5,0.80486]
[1751659339836,1.88067222,2484.6,2484.5,0.80486]
[1751659340040,0.80487,2484.5,2484.4,1.48158]
[1751659340445,0.80487,2484.5,2484.4,2.48778]
[1751659340645,0.80486,2484.6,2484.5,0.80484]
[1751659340847,1.88122387,2484.6,2484.5,0.80484]
[1751659341445,0.80487,2484.5,2484.4,2.48778]
[1751659341948,0.80487,2484.5,2484.4,1.6829]
[1751659342146,0.80487,2484.5,2484.4,1.0062]
[1751659342453,37.20887,2484.5,2484.4,1.0062]
[1751659342643,38.28558256,2484.5,2484.4,1.0062]
[1751659343348,40.95488256,2484.5,2484.4,1.0062]
[1751659344953,39.68458256,2484.5,2484.4,1.0062]
[1751659345152,3.28058256,2484.5,2484.4,1.0062]
[1751659345449,39.69658256,2484.5,2484.4,1.0062]
[1751659345851,39.69658256,2484.5,2484.4,4.2262]
[1751659349254,3.28058256,2484.5,2484.4,4.2262]
[1751659349456,39.70358256,2484.5,2484.4,4.2262]
[1751659349755,39.01898256,2484.5,2484.4,4.2262]
[1751659350557,39.01898256,2484.5,2484.4,5.2324]
[1751659351755,38.30458256,2484.5,2484.4,5.2324]
[1751659352757,38.29558256,2484.5,2484.4,5.2324]
[1751659354053,38.29558256,2484.5,2484.4,5.9169]
[1751659355057,38.29558256,2484.5,2484.4,7.3403]
[1751659355563,38.29558256,2484.5,2484.4,5.2324]
[1751659356550,39.56578256,2484.5,2484.4,5.2324]
[1751659359658,41.95501269,2484.5,2484.4,5.2324]
[1751659359863,40.68481269,2484.5,2484.4,5.2324]
[1751659360361,38.29558256,2484.5,2484.4,5.2324]
[1751659362158,39.56518256,2484.5,2484.4,5.2324]
[1751659362761,38.48847,2484.5,2484.4,5.2324]
[1751659363063,37.21887,2484.5,2484.4,5.2324]
[1751659364059,37.21887,2484.5,2484.4,4.2262]
[1751659365958,38.29180933,2484.5,2484.4,4.2262]
[1751659368161,38.29180933,2484.5,2484.4,5.2324]
[1751659369563,0.80504,2484.0,2483.9,1.3388]
[1751659369772,0.80507,2483.9,2483.8,0.6845]
[1751659370064,38.28700933,2483.9,2483.8,0.6845]
[1751659372257,38.28700933,2483.9,2483.7,0.6653]
[1751659372258,0.8051,2483.8,2483.7,0.6653]
[1751659372568,1.87803933,2483.8,2483.7,0.6653]
[1751659372765,42.67803933,2483.8,2483.7,0.6653]
[1751659374071,42.67803933,2483.8,2483.7,2.0378]
[1751659381176,42.67803933,2483.8,2483.7,0.6653]
[1751659381465,0.80513,2483.7,2483.6,2.8456]
[1751659381670,1.87806933,2483.7,2483.6,2.8456]
[1751659381868,0.80517,2483.6,2483.5,1.0534]
[1751659382272,37.21517,2483.6,2483.5,0.6724]
[1751659384971,38.29455928,2483.6,2483.5,0.6724]
[1751659397578,37.48938928,2483.6,2483.3,3.2268]
[1751659397779,0.80523,2483.4,2483.3,3.8779]
[1751659397980,0.80523,2483.4,2482.6,3.214644]
[1751659397981,37.47838928,2483.4,2482.6,4.020124]
[1751659398182,0.80536,2483.0,2482.9,0.7001]
[1751659398487,1.8856749,2483.0,2482.9,0.7001]
[1751659399090,0.80536,2483.0,2482.9,0.7001]
[1751659399486,1.88569312,2483.0,2482.9,0.7001]
[1751659400095,0.80536,2483.0,2482.9,0.7001]
[1751659401093,0.80536,2483.0,2482.9,2.128]
[1751659406098,0.80536,2483.0,2482.9,2.93339]
[1751659407399,0.80535,2483.1,2483.0,0.80535]
[1751659409200,0.80536,2483.0,2482.9,2.93337]
[1751659409396,0.80536,2483.0,2482.9,2.128]
[1751659409601,0.80536,2483.0,2482.9,0.7001]
[1751659410796,0.80536,2483.0,2482.9,1.50549]
[1751659411198,37.20432,2483.2,2482.9,0.7001]
[1751659411399,1.88575678,2483.1,2483.0,0.80533]
[1751659415400,1.88575678,2483.1,2482.9,1.50547]
[1751659415601,0.80536,2483.0,2482.9,1.50547]
[1751659415802,1.08122487,2483.0,2482.9,1.50547]
[1751659416105,1.88658487,2483.0,2482.9,1.50547]
[1751659416305,1.08122487,2483.0,2482.9,1.50547]
[1751659417106,0.80534,2483.1,2483.0,0.80536]
[1751659417302,1.88699249,2483.1,2483.0,0.80536]
[1751659417502,0.80534,2483.1,2483.0,0.80536]
[1751659417704,1.88699201,2483.1,2483.0,0.80536]
[1751659419006,0.80555,2482.5,2482.4,0.80553]
[1751659419201,0.80559,2482.3,2482.2,0.80561]
[1751659419400,2.01369,2482.7,2482.1,3.214644]
[1751659419401,0.80562,2482.2,2482.1,3.214644]
[1751659419608,2.01377,2482.6,2481.9,0.6495]
[1751659419609,2.0922,2482.6,2481.9,0.6495]
[1751659419902,0.80559,2482.3,2481.9,0.6495]
[1751659420104,0.80558,2482.4,2482.1,0.80564]
[1751659420303,1.08073505,2482.3,2482.2,0.80562]
[1751659420500,1.88632505,2482.3,2482.2,0.80562]
[1751659420703,1.88632505,2482.3,2482.1,0.80563]
[1751659420899,42.1902,2482.5,2482.1,0.80565]
[1751659421099,2.51753342,2482.4,2482.1,0.80565]
[1751659421303,1.08103342,2482.3,2482.1,0.80565]
[1751659421510,0.80559,2482.3,2481.9,1.9475]
[1751659421708,0.80562,2482.2,2482.0,0.80567]
[1751659422008,2.24208,2482.4,2481.9,1.9475]
[1751659422208,1.4365,2482.4,2482.1,0.80564]
[1751659422411,2.24208,2482.4,2482.1,0.80564]
[1751659422611,0.80559,2482.3,2482.1,0.80564]
[1751659423110,2.24208,2482.4,2482.2,0.80562]
[1751659423911,42.26335,2482.5,2482.3,0.80556]
[1751659424506,0.80557,2482.4,2482.2,0.8056]
[1751659425714,0.80559,2482.3,2482.2,0.8056]
[1751659426111,40.8,2482.5,2482.4,0.80556]
[1751659426311,0.80544,2482.8,2482.2,2.01406]
[1751659426512,1.09258997,2482.7,2482.6,0.80546]
[1751659426717,0.80544,2482.8,2482.7,0.80546]
[1751659426911,0.80547,2482.7,2482.6,0.80548]
[1751659427115,0.7186,2482.9,2482.4,0.6931]
[1751659427313,0.80547,2482.7,2482.6,0.80548]
[1751659428120,41.60544,2482.8,2482.7,0.80546]
[1751659429014,0.80546,2482.7,2482.6,0.80547]
[1751659429416,41.60545,2482.8,2482.7,0.80546]
[1751659429612,40.8,2482.8,2482.7,0.80546]
[1751659430721,0.80543,2482.8,2482.7,0.80546]
[1751659435218,77.9526,2482.9,2482.5,1.3476]
[1751659435424,1.09219369,2482.8,2482.4,0.6931]
[1751659435627,0.80551,2482.6,2482.5,0.80552]
[1751659436023,0.80549,2482.7,2482.6,0.80549]
[1751659436316,2.17005,2482.8,2482.7,0.80546]
[1751659436522,3.26232917,2482.8,2482.7,0.80546]
[1751659436823,2.45687917,2482.8,2482.7,0.80546]
[1751659437019,1.89732329,2482.8,2482.7,0.80546]
[1751659437420,1.09189329,2482.8,2482.7,0.80546]
[1751659437723,41.60541,2482.9,2482.8,0.80543]
[1751659437925,79.13639729,2482.9,2482.8,0.80543]
[1751659438126,0.80544,2482.8,2482.7,0.80544]
[1751659438531,37.24441,2482.9,2482.8,0.80543]
[1751659438820,37.53109127,2482.9,2482.8,0.80543]
[1751659439127,37.53009127,2482.9,2482.8,0.80543]
[1751659439517,41.60537,2483.0,2482.8,0.80543]
[1751659439723,78.04537,2483.0,2482.9,0.80539]
[1751659439924,79.13763528,2483.0,2482.9,0.80539]
[1751659440226,37.53226528,2483.0,2482.9,0.80539]
[1751659440526,37.53126528,2483.0,2482.9,0.80539]
[1751659441428,38.33662528,2483.0,2482.9,0.80539]
[1751659442329,38.33562528,2483.0,2482.9,0.80539]
[1751659443327,37.53026528,2483.0,2482.9,0.80539]
[1751659443928,12.09332,2483.2,2483.1,0.80533]
[1751659444128,38.33384888,2483.2,2483.1,0.80533]
[1751659444925,0.80535,2483.1,2483.0,0.80534]
[1751659445128,1.89789888,2483.1,2483.0,0.80534]
[1751659445430,1.89787888,2483.1,2483.0,0.80534]
[1751659446627,1.09254888,2483.1,2483.0,0.80534]
[1751659446932,77.235,2483.3,2483.2,0.8053]
[1751659447131,2.39795992,2483.7,2483.5,0.8052]
[1751659447328,0.80516,2483.7,2483.6,0.80515]
[1751659447632,38.36410186,2483.7,2483.6,0.80515]
[1751659447830,1.11494186,2483.7,2483.6,0.80515]
[1751659448227,0.80509,2483.9,2483.8,0.8051]
[1751659448428,1.91973504,2483.9,2483.7,0.8051]
[1751659448631,0.80509,2483.9,2483.8,0.6781]
[1751659448929,1.91973714,2483.9,2483.8,0.6781]
[1751659449129,1.91973714,2483.9,2483.8,1.4832]
[1751659449331,0.80509,2483.9,2483.8,1.4832]
[1751659451329,0.80509,2483.9,2483.8,0.6781]
[1751659451831,0.80509,2483.9,2483.8,1.4832]
[1751659452630,0.80509,2483.9,2483.8,0.6781]
[1751659453132,0.80509,2483.9,2483.8,1.4832]
[1751659453329,2.1081,2484.1,2483.8,0.6781]
[1751659453530,0.80499,2484.2,2483.8,0.6781]
[1751659453725,1.11112614,2484.1,2484.0,0.80504]
[1751659453930,0.80499,2484.2,2484.0,0.80504]
[1751659454136,0.80499,2484.2,2484.1,0.805]
[1751659454334,38.36292797,2484.2,2484.1,0.805]
[1751659454529,1.91592797,2484.2,2484.1,0.805]
[1751659454735,38.36192797,2484.2,2484.1,0.805]
[1751659455034,37.25099,2484.2,2484.1,0.805]
[1751659458539,0.80494,2484.4,2484.3,0.80493]
[1751659458735,0.80494,2484.4,2484.3,0.80494]
[1751659458736,1.1093095,2484.4,2484.3,0.80494]
[1751659459150,36.454,2485.0,2484.5,2.01218]
[1751659459437,0.80472,2485.0,2484.9,0.80475]
[1751659459630,40.8,2485.1,2485.0,0.80471]
[1751659459835,3.49303,2485.6,2484.8,2.01195]
[1751659460130,37.57854337,2485.5,2485.4,0.80458]
[1751659460336,36.469,2485.5,2485.4,0.80458]
[1751659460733,37.27355,2485.5,2485.4,0.80458]
[1751659461333,0.80455,2485.5,2485.4,0.80458]
[1751659461539,77.9405,2485.6,2485.4,0.80458]
[1751659462135,0.80456,2485.5,2485.3,0.80459]
[1751659463243,0.80456,2485.5,2485.4,0.80458]
[1751659463444,0.80456,2485.5,2485.3,0.80459]
[1751659465247,0.80456,2485.5,2485.4,0.80458]
[1751659465547,0.80456,2485.5,2485.3,0.8046]
[1751659465745,0.80458,2485.4,2485.3,0.8046]
[1751659466053,37.1245,2485.6,2485.1,1.50476]
[1751659466245,0.80472,2485.0,2484.8,0.6562]
[1751659466447,36.456,2485.2,2485.0,0.8047]
[1751659466649,0.80469,2485.1,2485.0,0.8047]
[1751659466845,37.26067,2485.2,2485.0,0.8047]
[1751659467040,0.80461,2485.4,2485.2,0.80463]
[1751659467246,36.466,2485.3,2485.2,0.80463]
[1751659467748,36.466,2485.4,2485.3,0.80462]
[1751659468556,36.463,2485.5,2485.4,0.80456]
[1751659469248,37.26755,2485.5,2485.4,0.80456]
[1751659469652,37.26755,2485.5,2485.3,0.8046]
[1751659470452,0.80458,2485.4,2485.3,0.8046]
[1751659470749,0.80462,2485.3,2485.2,1.51833]
[1751659470954,0.80462,2485.3,2485.2,0.7137]
[1751659471161,2.01117,2485.8,2485.2,0.7137]
[1751659471362,0.80462,2485.3,2485.2,0.7137]
[1751659471662,2.66094,2485.6,2485.1,0.80468]
[1751659471663,0.80467,2485.2,2485.1,0.80468]
[1751659472164,0.80461,2485.4,2485.3,0.80461]
[1751659472661,37.27757,2485.5,2485.4,0.80458]
[1751659473160,37.27754,2485.6,2485.5,0.80455]
[1751659473561,0.80454,2485.6,2485.5,0.80455]
[1751659474058,0.80452,2485.6,2485.5,0.80453]
[1751659475558,0.80451,2485.7,2485.6,0.80452]
[1751659475764,0.80448,2485.8,2485.4,0.6666]
[1751659475965,0.8045,2485.7,2485.6,0.8045]
[1751659476158,36.476,2485.8,2485.4,2.0247]
[1751659476365,0.80452,2485.6,2485.5,0.80453]
[1751659479059,0.80452,2485.6,2485.3,0.6689]
[1751659479060,0.80458,2485.4,2485.3,0.6689]
[1751659479266,38.48143,2485.5,2485.0,0.6711]
[1751659479464,0.80466,2485.2,2485.1,0.80466]
[1751659480869,0.80464,2485.3,2485.2,0.80464]
[1751659482569,0.80466,2485.2,2485.1,0.80466]
[1751659483171,0.80471,2485.0,2484.9,0.6995]
[1751659483675,0.80471,2485.0,2484.9,1.50425]
[1751659486273,0.80481,2484.7,2484.6,1.45853]
[1751659486471,2.68441,2484.9,2484.4,0.8049]
[1751659486668,0.80489,2484.5,2484.1,1.3519]
[1751659486875,0.80489,2484.5,2484.4,0.80489]
[1751659487474,40.8,2484.7,2484.1,2.6549]
[1751659487475,0.80496,2484.3,2484.2,0.80497]
[1751659487670,0.80495,2484.3,2484.1,3.45988]
[1751659488371,0.80495,2484.3,2484.2,0.80497]
[1751659489173,1.1069359,2484.3,2484.2,0.80497]
[1751659489876,0.80493,2484.4,2484.2,0.80497]
[1751659490877,1.47869,2484.5,2484.1,2.6549]
[1751659491072,1.47869,2484.5,2484.3,0.80492]
[1751659491272,0.80491,2484.4,2484.3,0.80492]
[1751659491576,0.6738,2484.5,2484.3,0.80492]
[1751659491770,0.80491,2484.4,2484.3,0.80492]
[1751659492264,0.80494,2484.3,2484.2,0.80495]
[1751659493677,0.6738,2484.5,2484.1,2.6549]
[1751659493866,1.10321861,2484.4,2484.1,2.6549]
[1751659494072,0.80492,2484.4,2484.3,0.80492]
[1751659494273,1.90757118,2484.4,2484.3,0.80492]
[1751659495078,0.80492,2484.4,2484.3,0.80492]
[1751659497573,0.8049,2484.5,2484.4,0.80489]
[1751659497976,0.8049,2484.5,2484.3,0.80492]
[1751659497977,0.80492,2484.4,2484.3,0.80492]
[1751659500478,42.1249,2484.7,2484.1,2.6549]
[1751659500679,0.80491,2484.4,2484.3,0.80491]
[1751659501380,0.8049,2484.5,2484.4,0.8049]
[1751659501877,0.80485,2484.6,2484.5,0.80486]
[1751659502078,0.80484,2484.7,2484.3,2.01236]
[1751659502282,0.80484,2484.7,2484.3,3.33816]
[1751659502476,1.50279,2484.8,2484.7,0.80481]
[1751659502676,0.80482,2484.7,2484.6,0.80482]
[1751659504081,0.8049,2484.5,2484.4,0.80487]
[1751659504280,0.80486,2484.6,2484.5,0.80485]
[1751659505886,0.80489,2484.5,2484.4,0.80488]
[1751659506276,0.80491,2484.4,2484.3,0.80494]
[1751659506481,0.8049,2484.5,2484.4,0.80489]
[1751659508190,36.477,2484.6,2484.1,0.6505]
[1751659508387,0.80496,2484.3,2484.2,0.80497]
[1751659508889,0.80493,2484.4,2484.2,0.80497]
[1751659509279,0.80494,2484.3,2484.2,0.80497]
[1751659514387,1.91190825,2484.3,2484.2,0.80497]
[1751659514990,0.80493,2484.4,2484.3,0.80492]
[1751659515193,1.91238588,2484.4,2484.3,0.80492]
[1751659517288,1.10745588,2484.4,2484.3,0.80492]
[1751659518492,1.10745588,2484.4,2484.3,2.24582]
[1751659523087,1.91236588,2484.4,2484.3,2.24584]
[1751659523295,0.80494,2484.3,2484.2,1.52445]
[1751659532400,1.9095117,2484.3,2484.2,1.52445]
[1751659534903,0.80494,2484.3,2484.2,1.52445]
[1751659535403,0.7115,2484.4,2484.3,0.80494]
[1751659535599,0.80491,2484.4,2484.3,0.80494]
[1751659535801,1.90271468,2484.4,2484.3,0.80494]
[1751659540507,1.09780468,2484.4,2484.3,0.80494]
[1751659540808,1.90271468,2484.4,2484.3,0.80494]
[1751659541608,1.09780468,2484.4,2484.3,0.80494]
[1751659542208,0.80487,2484.6,2484.5,0.80487]
[1751659542411,1.89962001,2484.6,2484.5,0.80487]
[1751659548217,0.8049,2484.5,2484.4,0.80489]
[1751659548404,0.80494,2484.3,2484.2,0.7195]
[1751659548612,0.80502,2484.1,2483.9,3.21656594]
[1751659548810,0.80502,2484.1,2484.0,0.80502]
[1751659549115,1.90119732,2484.1,2484.0,0.80502]
[1751659549307,1.09617732,2484.1,2484.0,0.80502]
[1751659550113,1.90117732,2484.1,2484.0,0.80502]
[1751659550712,1.09617732,2484.1,2484.0,0.80502]
[1751659551618,1.90117732,2484.1,2484.0,0.80502]
[1751659552119,1.09617732,2484.1,2484.0,0.80502]
[1751659553114,0.80489,2484.5,2484.4,0.80487]
[1751659553315,0.80487,2484.6,2484.5,0.80486]
[1751659553515,1.91122463,2484.6,2484.5,0.80486]
[1751659554121,1.10635463,2484.6,2484.5,0.80486]
[1751659554314,1.10635463,2484.6,2484.2,4.12209]
[1751659554315,2.39614111,2485.1,2485.0,0.80471]
[1751659554514,1.91104713,2485.1,2485.0,0.80471]
[1751659556119,0.80471,2485.0,2484.9,0.80472]
[1751659556321,0.8047,2485.1,2484.9,0.80472]
[1751659556516,0.8047,2485.1,2485.0,0.80471]
[1751659557920,0.80472,2485.0,2484.9,0.80472]
[1751659559520,0.80474,2484.9,2484.8,2.10366]
[1751659560423,0.80478,2484.8,2484.7,1.3882]
[1751659560724,0.80475,2484.9,2484.7,1.3882]
[1751659561121,0.80475,2484.9,2484.8,0.80476]
[1751659561322,0.80478,2484.8,2484.7,2.19299]
[1751659561522,0.80475,2484.9,2484.8,0.80477]
[1751659561727,0.80478,2484.8,2484.7,2.19299]
[1751659562428,1.3855,2485.2,2484.7,1.3882]
[1751659562630,0.80474,2485.0,2484.9,0.80473]
[1751659562825,0.80476,2484.9,2484.8,0.80476]
[1751659563628,0.80474,2485.0,2484.9,0.80473]
[1751659567829,0.80477,2484.9,2484.8,0.80476]
[1751659569030,0.80473,2485.0,2484.9,0.80473]
[1751659569831,0.80474,2484.9,2484.8,2.14615]
[1751659570233,0.6796,2485.3,2485.1,0.80466]
[1751659571030,0.80467,2485.2,2485.1,0.80466]
[1751659571533,0.80474,2484.9,2484.8,0.80476]
[1751659573337,0.80473,2485.0,2484.9,0.80472]
[1751659573531,0.8047,2485.1,2485.0,0.80469]
[1751659573834,0.80467,2485.2,2485.1,0.80466]
[1751659574226,0.8047,2485.1,2485.0,0.80469]
[1751659578036,0.80467,2485.2,2485.1,0.80468]
[1751659578237,0.80467,2485.2,2484.8,1.3404]
[1751659578437,0.80468,2485.1,2485.0,0.80469]
[1751659579043,0.80466,2485.2,2485.1,0.80465]
[1751659580040,0.80468,2485.1,2485.0,0.80469]
[1751659580541,0.80467,2485.2,2485.1,0.80466]
[1751659580740,1.89231665,2485.2,2485.1,0.80466]
[1751659582335,1.08764665,2485.2,2484.7,0.6944]
[1751659582542,2.20208,2485.2,2485.1,0.80468]
[1751659582841,0.8047,2485.1,2485.0,0.80469]
[1751659583041,1.89391152,2485.1,2485.0,0.80469]
[1751659590550,0.80473,2485.0,2484.9,0.80472]
[1751659590749,1.89394152,2485.0,2484.9,0.80472]
[1751659592856,1.08921152,2485.0,2484.9,0.80472]
[1751659593753,1.89635811,2485.2,2485.1,0.80468]
[1751659593953,0.80473,2485.0,2484.9,0.80472]
[1751659594155,1.8963917,2485.1,2485.0,0.80469]
[1751659594350,1.89639058,2485.1,2485.0,0.80469]
[1751659602369,1.89639058,2485.1,2484.9,0.80472]
[1751659602567,1.09169058,2485.0,2484.9,0.80472]
[1751659605275,1.89640058,2485.0,2484.9,0.80472]
[1751659605476,1.09169058,2485.0,2484.9,0.80472]
[1751659605875,1.89640058,2485.0,2484.9,0.80472]
[1751659606175,1.09169058,2485.0,2484.9,0.80472]
[1751659607178,1.09169058,2485.0,2484.9,2.12852]
[1751659607377,0.711,2485.6,2485.3,0.80458]
[1751659607378,0.80459,2485.4,2485.3,0.80458]
[1751659607574,1.88860825,2485.4,2485.3,0.80458]
[1751659608076,0.80464,2485.3,2485.2,0.80463]
[1751659608277,1.88865825,2485.3,2485.2,0.80463]
[1751659610280,0.80465,2485.2,2485.1,1.52506]
[1751659610479,1.08401825,2485.2,2485.1,1.52506]
[1751659611478,1.88866825,2485.2,2485.1,1.52506]
[1751659611980,1.08401825,2485.2,2485.1,1.52506]
[1751659613281,1.88866825,2485.2,2485.1,1.52506]
[1751659613483,1.08401825,2485.2,2485.1,1.52506]
[1751659617585,0.80453,2485.6,2485.5,0.80455]
[1751659617978,1.88790908,2485.6,2485.5,0.80455]
[1751659620188,1.08337908,2485.6,2485.2,2.0792]
[1751659620388,0.80456,2485.5,2485.4,0.80456]
[1751659621691,0.80454,2485.6,2485.5,0.80453]
[1751659621885,1.88621304,2485.6,2485.5,0.80453]
[1751659623488,1.88621304,2485.6,2485.2,2.0792]
[1751659623489,0.80455,2485.5,2485.4,0.80456]
[1751659623987,2.39614111,2486.1,2485.2,2.0792]
[1751659624201,0.6684,2486.4,2486.1,0.80435]
[1751659624387,1.08075084,2486.3,2486.2,1.52082]
[1751659624582,1.08073897,2486.3,2486.2,1.52082]
[1751659624983,0.80422,2486.5,2486.4,0.80424]
[1751659625184,1.46101,2486.6,2486.4,0.80424]
[1751659625989,0.80422,2486.5,2486.3,0.80426]
[1751659626190,0.6568,2486.6,2486.3,0.80429]
[1751659626392,0.80424,2486.5,2486.4,0.80426]
[1751659626593,0.80424,2486.5,2486.3,0.80427]
[1751659626895,0.80424,2486.5,2486.4,0.80426]
[1751659627992,0.6568,2486.6,2486.2,0.7165]
[1751659628194,0.80424,2486.5,2486.4,0.80425]
[1751659628494,0.6944,2487.4,2486.8,0.8041]
[1751659628682,1.07687163,2487.3,2486.6,0.80416]
[1751659628887,2.01017,2487.0,2486.3,0.80426]
[1751659629084,0.80417,2486.7,2486.5,0.80421]
[1751659629292,2.0805,2486.6,2486.5,0.80421]
[1751659630490,2.0805,2486.6,2486.2,0.6657]
[1751659630692,0.80431,2486.3,2486.1,12.07934]
[1751659630887,0.80435,2486.1,2486.0,1.3649]
[1751659631091,39.94571,2486.5,2485.9,0.80441]
[1751659631291,0.80434,2486.2,2485.6,2.0113]
[1751659631492,1.9677,2486.4,2485.8,2.01114]
[1751659631694,1.9677,2486.4,2485.9,0.668]
[1751659631895,0.80431,2486.3,2486.1,0.80434]
[1751659632593,1.9677,2486.4,2485.9,1.4724]
[1751659632895,1.46674,2486.2,2486.0,0.80439]
[1751659633096,0.6492,2486.4,2486.1,0.80434]
[1751659633295,0.80432,2486.3,2486.1,0.80434]
[1751659633491,0.80432,2486.2,2486.1,0.80434]
[1751659634196,0.80431,2486.3,2486.1,0.80434]
[1751659634396,0.80431,2486.3,2486.0,0.7193]
[1751659634596,0.80431,2486.3,2486.1,0.80433]
[1751659636098,0.80432,2486.2,2486.1,0.80433]
[1751659636694,0.80432,2486.3,2486.1,0.80433]
[1751659636898,0.80432,2486.2,2486.1,0.80433]
[1751659637499,0.80431,2486.3,2486.2,0.80432]
[1751659638193,0.80435,2486.2,2486.0,2.0846]
[1751659638401,0.6492,2486.4,2486.0,2.0846]
[1751659638598,0.80431,2486.3,2486.2,0.80431]
[1751659640199,1.45347,2486.4,2486.3,0.80429]
[1751659641493,0.8043,2486.3,2486.2,0.8043]
[1751659644301,1.45348,2486.4,2486.3,0.80429]
[1751659645304,0.80431,2486.3,2486.2,0.8043]
[1751659645800,0.80433,2486.3,2486.2,0.80431]
[1751659647802,0.80434,2486.2,2486.1,0.80433]
[1751659647998,0.80435,2486.1,2486.0,1.52367]
[1751659648204,0.80434,2486.2,2486.1,0.80433]
[1751659649803,0.80435,2486.1,2486.0,1.52366]
[1751659652606,0.80435,2486.1,2486.0,0.80436]
[1751659653009,1.46704,2486.2,2486.1,0.80435]
[1751659653202,2.54597739,2486.2,2486.1,0.80435]
[1751659653403,1.07893739,2486.2,2486.1,0.80435]
[1751659654506,1.88325739,2486.2,2486.1,0.80435]
[1751659655810,1.07893739,2486.2,2486.1,0.80435]
[1751659656511,1.88325739,2486.2,2486.1,0.80435]
[1751659656710,0.80435,2486.1,2486.0,0.80435]
[1751659657205,0.80439,2486.0,2485.9,0.668]
[1751659657411,0.80439,2486.0,2485.9,1.47242]
[1751659658412,1.49087,2486.1,2486.0,0.80439]
[1751659658609,2.56562359,2486.1,2486.0,0.80439]
[1751659659507,1.87912359,2486.1,2486.0,0.80439]
[1751659667623,0.80439,2486.0,2485.9,1.4724]
[1751659667823,1.07475359,2486.0,2485.9,1.4724]
[1751659668522,1.87914359,2486.0,2485.9,1.4724]
[1751659669324,1.07475359,2486.0,2485.9,1.4724]
[1751659671226,1.87914359,2486.0,2485.9,1.4724]
[1751659672026,1.07475359,2486.0,2485.9,1.4724]
[1751659674025,1.87914359,2486.0,2485.9,1.4724]
[1751659674528,1.07475359,2486.0,2485.9,1.4724]
[1751659675230,0.80436,2486.1,2486.0,0.80434]
[1751659675633,1.88072964,2486.1,2486.0,0.80434]
[1751659677232,0.80436,2486.1,2486.0,0.80434]
[1751659677733,1.88078405,2486.1,2486.0,0.80434]
[1751659678033,1.07642405,2486.1,2486.0,0.80434]
[1751659678826,2.41298528,2486.6,2486.0,17.10534]
[1751659679029,2.41298528,2486.8,2486.2,2.01073]
[1751659679228,0.80413,2486.8,2486.4,2.01065]
[1751659679432,0.80413,2486.8,2486.7,0.80414]
[1751659680133,0.80415,2486.8,2486.7,0.80415]
[1751659680731,0.80412,2486.9,2486.8,0.80413]
[1751659681429,0.6529,2487.0,2486.8,0.80413]
[1751659681633,0.8041,2486.9,2486.8,0.80413]
[1751659682431,0.80409,2487.0,2486.6,0.6915]
[1751659682638,0.80405,2487.1,2486.7,2.0557]
[1751659683028,0.80405,2487.1,2487.0,0.80405]
[1751659683029,0.80403,2487.1,2487.0,0.80405]
[1751659683539,0.80403,2487.1,2486.9,1.49977]
[1751659683730,0.80406,2487.0,2486.9,1.49977]
[1751659684431,0.80406,2487.0,2486.9,0.6957]
[1751659685938,0.80406,2487.0,2486.9,1.4998]
[1751659686140,0.80406,2487.0,2486.9,0.6957]
[1751659688146,0.80406,2487.0,2486.9,1.4998]
[1751659689037,0.80406,2487.0,2486.9,0.6957]
[1751659689443,0.80406,2487.0,2486.9,1.4998]
[1751659689645,0.80406,2487.0,2486.9,0.6957]
[1751659690043,0.80406,2487.0,2486.9,1.4998]
[1751659690543,0.80405,2487.1,2487.0,0.80405]
[1751659690731,0.80406,2487.0,2486.9,1.49978]
[1751659692244,0.6714,2487.2,2486.9,0.6957]
[1751659692435,0.80405,2487.1,2487.0,0.80405]
[1751659693249,1.47541,2487.2,2487.1,0.80403]
[1751659693746,0.80404,2487.1,2487.0,0.80404]